[Event "Late-Titled-Tuesday-Blitz-October-10-2023"]
[Site "Chess.com"]
[Date "2023.10.10"]
[Round "4"]
[White "h4parah5"]
[Black "BigAl"]
[Result "1-0"]
[WhiteElo "2928"]
[BlackElo "2592"]
[TimeControl "180+1"]
[EndTime "14:37:49 PDT"]
[Termination "h4parah5 won by resignation"]

1. d4 {[%clk 0:03:00.9]} 1... Nf6 {[%clk 0:03:00]} 2. Nf3 {[%clk 0:03:00.4]}
2... g6 {[%clk 0:03:00.9]} 3. Bf4 {[%clk 0:03:00.1]} 3... Bg7 {[%clk 0:03:01.8]}
4. e3 {[%clk 0:03:00]} 4... O-O {[%clk 0:03:02.7]} 5. h3 {[%clk 0:03:00.7]} 5...
d6 {[%clk 0:03:03.6]} 6. Be2 {[%clk 0:03:01.3]} 6... c5 {[%clk 0:03:04.5]} 7. c3
{[%clk 0:03:00.5]} 7... Be6 {[%clk 0:03:05.4]} 8. Nbd2 {[%clk 0:03:00]} 8... Qb6
{[%clk 0:03:06.2]} 9. Qc1 {[%clk 0:02:56.6]} 9... Nc6 {[%clk 0:03:06.9]} 10. O-O
{[%clk 0:02:56.1]} 10... cxd4 {[%clk 0:03:07.2]} 11. exd4 {[%clk 0:02:53.7]}
11... Rac8 {[%clk 0:03:08.1]} 12. Re1 {[%clk 0:02:48.3]} 12... Nd5 {[%clk
0:03:07.6]} 13. Nc4 {[%clk 0:02:45.5]} 13... Qd8 {[%clk 0:03:05.4]} 14. Bh6
{[%clk 0:02:45.3]} 14... b5 {[%clk 0:03:00.6]} 15. Bxg7 {[%clk 0:02:42.7]} 15...
Kxg7 {[%clk 0:03:01.5]} 16. Ne3 {[%clk 0:02:42.2]} 16... Qb6 {[%clk 0:02:44.8]}
17. Ng5 {[%clk 0:02:40.2]} 17... Nxe3 {[%clk 0:02:18.5]} 18. Nxe6+ {[%clk
0:02:03.7]} 18... fxe6 {[%clk 0:02:18.8]} 19. Qxe3 {[%clk 0:02:04.6]} 19... Rf6
{[%clk 0:02:03]} 20. Bg4 {[%clk 0:02:01]} 20... Rcf8 {[%clk 0:01:47.4]} 21. Bxe6
{[%clk 0:02:00.5]} 21... Rxf2 {[%clk 0:01:47.6]} 22. Rf1 {[%clk 0:01:47.9]}
22... Rxf1+ {[%clk 0:01:45.7]} 23. Rxf1 {[%clk 0:01:48.8]} 23... Rxf1+ {[%clk
0:01:45.3]} 24. Kxf1 {[%clk 0:01:49.7]} 24... Qd8 {[%clk 0:01:36.3]} 25. Qf3
{[%clk 0:01:41]} 25... Qe8 {[%clk 0:01:11.8]} 26. Kg1 {[%clk 0:01:30.9]} 26...
a6 {[%clk 0:01:10.3]} 27. b4 {[%clk 0:01:30]} 27... Nd8 {[%clk 0:01:03.2]} 28.
Qa8 {[%clk 0:01:27.9]} 28... Qf8 {[%clk 0:00:33.5]} 29. Bd5 {[%clk 0:01:26.6]}
29... e6 {[%clk 0:00:33.7]} 30. Bf3 {[%clk 0:01:25.6]} 30... h5 {[%clk
0:00:05.8]} 31. Qxa6 {[%clk 0:01:24.7]} 31... Qf4 {[%clk 0:00:05.6]} 32. Qxb5
{[%clk 0:01:21.3]} 32... Qe3+ {[%clk 0:00:06.3]} 33. Kf1 {[%clk 0:01:18.1]}
33... Qc1+ {[%clk 0:00:06.5]} 34. Kf2 {[%clk 0:01:17.1]} 34... Qxc3 {[%clk
0:00:07]} 35. Qd7+ {[%clk 0:00:55.9]} 35... Nf7 {[%clk 0:00:07.3]} 36. Qxe6
{[%clk 0:00:51]} 36... Qxb4 {[%clk 0:00:08.2]} 37. Qd5 {[%clk 0:00:37.5]} 37...
Qd2+ {[%clk 0:00:07.4]} 38. Kg3 {[%clk 0:00:31.5]} 38... h4+ {[%clk 0:00:07.2]}
39. Kh2 {[%clk 0:00:23.2]} 39... Qf4+ {[%clk 0:00:07.2]} 40. Kg1 {[%clk
0:00:23]} 40... Qc1+ {[%clk 0:00:06.8]} 41. Kf2 {[%clk 0:00:22.8]} 41... Qd2+
{[%clk 0:00:07.2]} 42. Be2 {[%clk 0:00:22.4]} 42... Qf4+ {[%clk 0:00:07.9]} 43.
Ke1 {[%clk 0:00:20.5]} 43... Qc1+ {[%clk 0:00:08.2]} 44. Bd1 {[%clk 0:00:19.5]}
44... Qe3+ {[%clk 0:00:09]} 45. Kf1 {[%clk 0:00:19.6]} 45... Qf4+ {[%clk
0:00:08.9]} 46. Ke2 {[%clk 0:00:19.8]} 46... Qc1 {[%clk 0:00:07.4]} 47. Bb3
{[%clk 0:00:19.6]} 47... Ng5 {[%clk 0:00:06.3]} 48. Qxd6 {[%clk 0:00:16.8]}
48... Qb2+ {[%clk 0:00:05.6]} 49. Kd3 {[%clk 0:00:16.5]} 49... Qb1+ {[%clk
0:00:05.7]} 50. Kc4 {[%clk 0:00:16.3]} 50... Ne4 {[%clk 0:00:06.4]} 51. Qe7+
{[%clk 0:00:15.3]} 51... Kh8 {[%clk 0:00:05.2]} 52. Kb4 {[%clk 0:00:12.3]} 52...
Qd3 {[%clk 0:00:04.9]} 53. Qf8+ {[%clk 0:00:11.8]} 53... Kh7 {[%clk 0:00:05.4]}
54. Bg8+ {[%clk 0:00:12.6]} 54... Kh8 {[%clk 0:00:06.1]} 55. Bf7+ {[%clk
0:00:13.2]} 55... Kh7 {[%clk 0:00:06.7]} 56. Qg8+ {[%clk 0:00:13.9]} 1-0

[Event "Late-Titled-Tuesday-Blitz-October-10-2023"]
[Site "Chess.com"]
[Date "2023.10.10"]
[Round "4"]
[White "GMBenjaminBok"]
[Black "Beca95"]
[Result "1/2-1/2"]
[WhiteElo "3011"]
[BlackElo "2842"]
[TimeControl "180+1"]
[EndTime "14:38:00 PDT"]
[Termination "Game drawn by repetition"]

1. d4 {[%clk 0:03:00.9]} 1... Nf6 {[%clk 0:02:59.9]} 2. c4 {[%clk 0:03:00.6]}
2... c5 {[%clk 0:03:00.5]} 3. Nf3 {[%clk 0:02:57.5]} 3... cxd4 {[%clk
0:02:59.7]} 4. Nxd4 {[%clk 0:02:58.4]} 4... e6 {[%clk 0:02:58.7]} 5. g3 {[%clk
0:02:58]} 5... a6 {[%clk 0:02:54.9]} 6. Bg2 {[%clk 0:02:57.3]} 6... Qc7 {[%clk
0:02:55.5]} 7. b3 {[%clk 0:02:52.9]} 7... Nc6 {[%clk 0:02:53.9]} 8. O-O {[%clk
0:02:44.1]} 8... Bc5 {[%clk 0:02:53]} 9. Bb2 {[%clk 0:02:41.6]} 9... O-O {[%clk
0:02:36.9]} 10. e3 {[%clk 0:02:29.9]} 10... b6 {[%clk 0:02:29]} 11. Nxc6 {[%clk
0:02:26.3]} 11... dxc6 {[%clk 0:02:28.4]} 12. Bxf6 {[%clk 0:02:04.3]} 12... gxf6
{[%clk 0:02:29.3]} 13. Qg4+ {[%clk 0:02:01.5]} 13... Kh8 {[%clk 0:02:28.5]} 14.
Qf3 {[%clk 0:02:00.2]} 14... Qe5 {[%clk 0:02:28.6]} 15. Nd2 {[%clk 0:01:56.4]}
15... Bb7 {[%clk 0:02:24.3]} 16. Rad1 {[%clk 0:01:50.1]} 16... Rad8 {[%clk
0:02:22.3]} 17. Qg4 {[%clk 0:01:23]} 17... f5 {[%clk 0:02:03]} 18. Qh4 {[%clk
0:01:18.3]} 18... Qg7 {[%clk 0:01:06.3]} 19. Nf3 {[%clk 0:01:17.8]} 19... f6
{[%clk 0:01:06.2]} 20. Nd4 {[%clk 0:01:12.9]} 20... Rd6 {[%clk 0:01:03.3]} 21.
Rd3 {[%clk 0:00:54.1]} 21... Qg5 {[%clk 0:00:59.8]} 22. Qxg5 {[%clk 0:00:42.9]}
22... fxg5 {[%clk 0:01:00.7]} 23. Rfd1 {[%clk 0:00:42.8]} 23... Rfd8 {[%clk
0:00:59.3]} 24. Bf1 {[%clk 0:00:41]} 24... Bxd4 {[%clk 0:00:50]} 25. exd4 {[%clk
0:00:39.8]} 25... c5 {[%clk 0:00:49.2]} 26. dxc5 {[%clk 0:00:37.8]} 26... Rxd3
{[%clk 0:00:48.9]} 27. Rxd3 {[%clk 0:00:38.4]} 27... Rxd3 {[%clk 0:00:48.6]} 28.
Bxd3 {[%clk 0:00:39.3]} 28... bxc5 {[%clk 0:00:48.9]} 29. f4 {[%clk 0:00:38.5]}
29... h6 {[%clk 0:00:47.6]} 30. Kf2 {[%clk 0:00:38.4]} 30... Kg7 {[%clk
0:00:47.1]} 31. Ke3 {[%clk 0:00:38.9]} 31... Kf6 {[%clk 0:00:47.3]} 32. Bc2
{[%clk 0:00:34.1]} 32... e5 {[%clk 0:00:47.2]} 33. a3 {[%clk 0:00:28.7]} 33...
a5 {[%clk 0:00:47.2]} 34. Bd3 {[%clk 0:00:27.6]} 34... exf4+ {[%clk 0:00:43]}
35. gxf4 {[%clk 0:00:28.5]} 35... h5 {[%clk 0:00:41.2]} 36. Be2 {[%clk
0:00:26.6]} 36... h4 {[%clk 0:00:40.9]} 37. Bd3 {[%clk 0:00:09.9]} 37... g4
{[%clk 0:00:37.2]} 38. Kf2 {[%clk 0:00:10.2]} 38... Be4 {[%clk 0:00:35.4]} 39.
Bf1 {[%clk 0:00:03]} 39... Bc2 {[%clk 0:00:34.6]} 40. Ke3 {[%clk 0:00:03.5]}
40... Bxb3 {[%clk 0:00:34.3]} 41. Kf2 {[%clk 0:00:04.1]} 41... Bc2 {[%clk
0:00:34.1]} 42. Be2 {[%clk 0:00:04.4]} 42... Ke6 {[%clk 0:00:34.4]} 43. Bf1
{[%clk 0:00:04.7]} 43... Kd6 {[%clk 0:00:34.7]} 44. Be2 {[%clk 0:00:05.1]} 44...
Kc6 {[%clk 0:00:34.9]} 45. Bf1 {[%clk 0:00:05.5]} 45... Kd6 {[%clk 0:00:29.9]}
46. Be2 {[%clk 0:00:06]} 46... Be4 {[%clk 0:00:29.5]} 47. Bf1 {[%clk 0:00:06.4]}
47... Ke6 {[%clk 0:00:29.8]} 48. Be2 {[%clk 0:00:06.2]} 48... Kf6 {[%clk
0:00:29.5]} 49. Bf1 {[%clk 0:00:06.3]} 49... Kg6 {[%clk 0:00:30]} 50. Be2 {[%clk
0:00:06.5]} 50... Bc6 {[%clk 0:00:22.4]} 51. Bf1 {[%clk 0:00:06.7]} 51... Bf3
{[%clk 0:00:22.5]} 52. Bd3 {[%clk 0:00:06.5]} 52... Kf6 {[%clk 0:00:22.2]} 53.
Bf1 {[%clk 0:00:06.5]} 53... Be4 {[%clk 0:00:18.3]} 54. Be2 {[%clk 0:00:06.7]}
54... Bc2 {[%clk 0:00:16.9]} 55. Bf1 {[%clk 0:00:06.5]} 55... Bd1 {[%clk
0:00:17.1]} 56. Bd3 {[%clk 0:00:06.6]} 56... Kg6 {[%clk 0:00:17.5]} 57. Bf1
{[%clk 0:00:06.4]} 57... Bc2 {[%clk 0:00:17.8]} 58. Be2 {[%clk 0:00:06.4]} 58...
Kh5 {[%clk 0:00:18.1]} 59. Kg2 {[%clk 0:00:02.1]} 59... Bb3 {[%clk 0:00:14]} 60.
Kf2 {[%clk 0:00:02.3]} 60... Bc2 {[%clk 0:00:14.3]} 61. Kg2 {[%clk 0:00:02.6]}
61... Be4+ {[%clk 0:00:13.5]} 62. Kf2 {[%clk 0:00:02.7]} 62... Bc6 {[%clk
0:00:13.9]} 63. Bf1 {[%clk 0:00:02.2]} 63... Bf3 {[%clk 0:00:10.8]} 64. Bd3
{[%clk 0:00:02.2]} 64... Kg6 {[%clk 0:00:10.3]} 65. Bf1 {[%clk 0:00:02.5]} 65...
Be4 {[%clk 0:00:09.4]} 66. Be2 {[%clk 0:00:03]} 66... Kh6 {[%clk 0:00:09.9]} 67.
Bf1 {[%clk 0:00:03.3]} 67... Kg7 {[%clk 0:00:08.3]} 68. Be2 {[%clk 0:00:03.7]}
68... Kh7 {[%clk 0:00:08.8]} 69. Bf1 {[%clk 0:00:04.1]} 69... Kg6 {[%clk
0:00:09.4]} 1/2-1/2

[Event "Late-Titled-Tuesday-Blitz-October-10-2023"]
[Site "Chess.com"]
[Date "2023.10.10"]
[Round "4"]
[White "K_A_S_T_O_R"]
[Black "NateSolon"]
[Result "1-0"]
[WhiteElo "2892"]
[BlackElo "2575"]
[TimeControl "180+1"]
[EndTime "14:38:04 PDT"]
[Termination "K_A_S_T_O_R won by resignation"]

1. e4 {[%clk 0:03:00.9]} 1... c5 {[%clk 0:02:59.7]} 2. Nf3 {[%clk 0:02:57.2]}
2... Nf6 {[%clk 0:02:59.7]} 3. d3 {[%clk 0:02:49.8]} 3... Nc6 {[%clk 0:02:57.6]}
4. c3 {[%clk 0:02:49.5]} 4... g6 {[%clk 0:02:52]} 5. Nbd2 {[%clk 0:02:46.3]}
5... Bg7 {[%clk 0:02:50.8]} 6. Be2 {[%clk 0:02:46.6]} 6... O-O {[%clk
0:02:50.5]} 7. O-O {[%clk 0:02:47.3]} 7... d6 {[%clk 0:02:40.9]} 8. Re1 {[%clk
0:02:44.2]} 8... Rb8 {[%clk 0:02:40.3]} 9. a4 {[%clk 0:02:42.8]} 9... a6 {[%clk
0:02:39.9]} 10. h3 {[%clk 0:02:42.8]} 10... b5 {[%clk 0:02:39.8]} 11. axb5
{[%clk 0:02:43.4]} 11... axb5 {[%clk 0:02:40.7]} 12. d4 {[%clk 0:02:39.1]} 12...
Nd7 {[%clk 0:02:30.1]} 13. Nf1 {[%clk 0:02:34.4]} 13... b4 {[%clk 0:02:23.7]}
14. Be3 {[%clk 0:02:32.7]} 14... bxc3 {[%clk 0:02:19.8]} 15. bxc3 {[%clk
0:02:33.3]} 15... cxd4 {[%clk 0:02:15.9]} 16. cxd4 {[%clk 0:02:31.7]} 16... Bb7
{[%clk 0:02:16.2]} 17. Rc1 {[%clk 0:02:29.6]} 17... Nb4 {[%clk 0:02:08]} 18. Ng3
{[%clk 0:02:26.7]} 18... Nf6 {[%clk 0:02:02.8]} 19. d5 {[%clk 0:02:21.9]} 19...
Nd7 {[%clk 0:01:26.1]} 20. Qd2 {[%clk 0:02:19.3]} 20... Ba6 {[%clk 0:01:16]} 21.
Bxa6 {[%clk 0:02:15.6]} 21... Nxa6 {[%clk 0:01:16.9]} 22. Nd4 {[%clk 0:02:16]}
22... Bxd4 {[%clk 0:01:12.9]} 23. Bxd4 {[%clk 0:02:15.5]} 23... Nac5 {[%clk
0:01:12.8]} 24. Qh6 {[%clk 0:02:10.7]} 24... f6 {[%clk 0:01:12]} 25. Rc3 {[%clk
0:02:05.5]} 25... Qa5 {[%clk 0:00:57.9]} 26. Ree3 {[%clk 0:01:49.9]} 26... Rb4
{[%clk 0:00:43.4]} 27. Nf5 {[%clk 0:01:40.5]} 27... Rf7 {[%clk 0:00:39]} 28. Ra3
{[%clk 0:01:39.1]} 28... Ra4 {[%clk 0:00:32.7]} 29. Rxa4 {[%clk 0:01:37.6]}
29... Qxa4 {[%clk 0:00:33]} 30. Rg3 {[%clk 0:01:16.3]} 30... Nf8 {[%clk
0:00:32.7]} 31. Bxc5 {[%clk 0:01:11.6]} 31... dxc5 {[%clk 0:00:31.9]} 32. Qe3
{[%clk 0:01:10.3]} 32... Kh8 {[%clk 0:00:24.3]} 33. Nh6 {[%clk 0:01:09.7]} 33...
Rg7 {[%clk 0:00:24.8]} 34. Qxc5 {[%clk 0:00:56.1]} 34... Qxe4 {[%clk 0:00:23.7]}
35. Re3 {[%clk 0:00:56]} 35... Qb1+ {[%clk 0:00:21.7]} 36. Kh2 {[%clk
0:00:55.2]} 36... Qb8+ {[%clk 0:00:21.1]} 37. g3 {[%clk 0:00:55.1]} 37... Qd8
{[%clk 0:00:19.6]} 38. Qc6 {[%clk 0:00:46.3]} 38... Nd7 {[%clk 0:00:18.8]} 39.
Qe6 {[%clk 0:00:42.3]} 39... Ne5 {[%clk 0:00:10.9]} 40. f4 {[%clk 0:00:37.3]}
40... Nc4 {[%clk 0:00:11.2]} 41. Re2 {[%clk 0:00:33.1]} 41... Nd6 {[%clk
0:00:11.2]} 42. Ng4 {[%clk 0:00:26.8]} 42... h5 {[%clk 0:00:10.6]} 43. Ne3
{[%clk 0:00:26.2]} 43... Qc8 {[%clk 0:00:09.7]} 44. Qxc8+ {[%clk 0:00:24.3]}
44... Nxc8 {[%clk 0:00:10.6]} 45. Nc4 {[%clk 0:00:24.2]} 45... Kg8 {[%clk
0:00:08.9]} 46. Re6 {[%clk 0:00:24.1]} 46... Kf7 {[%clk 0:00:08.1]} 47. Rc6
{[%clk 0:00:24.7]} 47... Rg8 {[%clk 0:00:06.9]} 48. g4 {[%clk 0:00:20.3]} 48...
hxg4 {[%clk 0:00:06.8]} 49. hxg4 {[%clk 0:00:20.9]} 49... Rd8 {[%clk 0:00:07.5]}
50. Rc5 {[%clk 0:00:21.4]} 50... Nd6 {[%clk 0:00:07]} 51. Nxd6+ {[%clk 0:00:21]}
51... Rxd6 {[%clk 0:00:07.9]} 52. Kg3 {[%clk 0:00:21.2]} 52... f5 {[%clk
0:00:07.9]} 53. g5 {[%clk 0:00:19.6]} 53... Ra6 {[%clk 0:00:05]} 54. Kf2 {[%clk
0:00:18]} 54... Ra3 {[%clk 0:00:05.1]} 55. Rc4 {[%clk 0:00:16.1]} 55... Rd3
{[%clk 0:00:05.4]} 56. Rc5 {[%clk 0:00:15.8]} 56... Ra3 {[%clk 0:00:06]} 57. Ke2
{[%clk 0:00:15.9]} 57... Rh3 {[%clk 0:00:06.1]} 58. Rc7 {[%clk 0:00:15.2]} 58...
Ra3 {[%clk 0:00:05.9]} 59. d6 {[%clk 0:00:15]} 59... Ra4 {[%clk 0:00:03.5]} 60.
Rxe7+ {[%clk 0:00:14.5]} 60... Kf8 {[%clk 0:00:04.1]} 61. Ke3 {[%clk 0:00:15]}
61... Rb4 {[%clk 0:00:03.3]} 62. Re6 {[%clk 0:00:14.9]} 62... Kf7 {[%clk
0:00:03.3]} 63. Rf6+ {[%clk 0:00:15.2]} 63... Kg7 {[%clk 0:00:03.7]} 64. d7
{[%clk 0:00:15.3]} 64... Rb8 {[%clk 0:00:03.9]} 65. Kd4 {[%clk 0:00:12.7]} 65...
Rd8 {[%clk 0:00:02.7]} 66. Rd6 {[%clk 0:00:13.2]} 66... Kf7 {[%clk 0:00:03]} 67.
Ke5 {[%clk 0:00:13.7]} 1-0

[Event "Late-Titled-Tuesday-Blitz-October-10-2023"]
[Site "Chess.com"]
[Date "2023.10.10"]
[Round "4"]
[White "marcodobrikov"]
[Black "MathiasWomacka"]
[Result "1/2-1/2"]
[WhiteElo "2758"]
[BlackElo "2527"]
[TimeControl "180+1"]
[EndTime "14:38:11 PDT"]
[Termination "Game drawn - insufficient material"]

1. Nc3 {[%clk 0:03:00.2]} 1... c5 {[%clk 0:02:59.8]} 2. e4 {[%clk 0:02:59.6]}
2... Nc6 {[%clk 0:02:58.6]} 3. Nf3 {[%clk 0:02:57.6]} 3... e5 {[%clk 0:02:57.5]}
4. Bc4 {[%clk 0:02:55.4]} 4... Be7 {[%clk 0:02:57.5]} 5. Nd5 {[%clk 0:02:53.9]}
5... d6 {[%clk 0:02:54.2]} 6. O-O {[%clk 0:02:53.4]} 6... Nf6 {[%clk 0:02:54.1]}
7. d3 {[%clk 0:02:53]} 7... Nxd5 {[%clk 0:02:37.7]} 8. Bxd5 {[%clk 0:02:53]}
8... Be6 {[%clk 0:02:35]} 9. Bxe6 {[%clk 0:02:51.3]} 9... fxe6 {[%clk
0:02:34.4]} 10. c3 {[%clk 0:02:50.2]} 10... O-O {[%clk 0:02:33.5]} 11. Be3
{[%clk 0:02:48.3]} 11... d5 {[%clk 0:02:28.5]} 12. Qb3 {[%clk 0:02:44.9]} 12...
Qd7 {[%clk 0:02:26.6]} 13. Rad1 {[%clk 0:02:44.3]} 13... Rab8 {[%clk 0:02:06.3]}
14. Rfe1 {[%clk 0:02:43.7]} 14... b5 {[%clk 0:02:02.9]} 15. d4 {[%clk
0:02:37.5]} 15... exd4 {[%clk 0:01:58]} 16. cxd4 {[%clk 0:02:34.1]} 16... c4
{[%clk 0:01:57.8]} 17. Qc2 {[%clk 0:02:33.5]} 17... Nb4 {[%clk 0:01:51.4]} 18.
Qb1 {[%clk 0:02:33.6]} 18... Nd3 {[%clk 0:01:50.9]} 19. Ne5 {[%clk 0:02:32.6]}
19... Nxe5 {[%clk 0:01:48.3]} 20. dxe5 {[%clk 0:02:33.5]} 20... Qc6 {[%clk
0:01:37.5]} 21. exd5 {[%clk 0:02:32.1]} 21... exd5 {[%clk 0:01:38.4]} 22. e6
{[%clk 0:02:29.9]} 22... Rb7 {[%clk 0:01:20.1]} 23. Bd4 {[%clk 0:02:28]} 23...
Bc5 {[%clk 0:01:12.2]} 24. Qc1 {[%clk 0:02:14.7]} 24... Bxd4 {[%clk 0:01:02.9]}
25. Rxd4 {[%clk 0:02:15.6]} 25... Re7 {[%clk 0:01:02.8]} 26. Re5 {[%clk
0:01:56.7]} 26... Rxe6 {[%clk 0:00:59.9]} 27. Rdxd5 {[%clk 0:01:56.9]} 27...
Rxe5 {[%clk 0:00:56]} 28. Rxe5 {[%clk 0:01:57.8]} 28... Rxf2 {[%clk 0:00:49.6]}
29. Qg5 {[%clk 0:01:28]} 29... Rf8 {[%clk 0:00:32.9]} 30. Rxb5 {[%clk
0:01:24.2]} 30... a6 {[%clk 0:00:21.9]} 31. Qd5+ {[%clk 0:01:24]} 31... Qxd5
{[%clk 0:00:21.8]} 32. Rxd5 {[%clk 0:01:24.9]} 32... Rb8 {[%clk 0:00:21.7]} 33.
Rd2 {[%clk 0:01:24.6]} 33... Kf7 {[%clk 0:00:20.9]} 34. Kf2 {[%clk 0:01:25.2]}
34... Ke6 {[%clk 0:00:20.4]} 35. Ke3 {[%clk 0:01:26.1]} 35... Rc8 {[%clk
0:00:17.4]} 36. Ke4 {[%clk 0:01:23.3]} 36... c3 {[%clk 0:00:15.7]} 37. bxc3
{[%clk 0:01:23.5]} 37... Rxc3 {[%clk 0:00:15.3]} 38. Rb2 {[%clk 0:01:23.9]}
38... Rc4+ {[%clk 0:00:15.3]} 39. Kd3 {[%clk 0:01:24.5]} 39... Ra4 {[%clk
0:00:16.2]} 40. Ke3 {[%clk 0:01:23.8]} 40... h6 {[%clk 0:00:15.6]} 41. h3 {[%clk
0:01:23.3]} 41... Kf6 {[%clk 0:00:16.5]} 42. Kf3 {[%clk 0:01:22]} 42... Ra3+
{[%clk 0:00:13.3]} 43. Ke4 {[%clk 0:01:22.6]} 43... h5 {[%clk 0:00:13.3]} 44.
Kd5 {[%clk 0:01:22.2]} 44... Kg5 {[%clk 0:00:13.5]} 45. Kc5 {[%clk 0:01:11.7]}
45... Kf4 {[%clk 0:00:13.4]} 46. Kb4 {[%clk 0:01:12.2]} 46... Re3 {[%clk
0:00:10.4]} 47. a4 {[%clk 0:01:12.5]} 47... Kg3 {[%clk 0:00:10]} 48. a5 {[%clk
0:01:03.5]} 48... Re6 {[%clk 0:00:10.9]} 49. Kc4 {[%clk 0:00:55.4]} 49... h4
{[%clk 0:00:11]} 50. Rb6 {[%clk 0:00:48.6]} 50... Re4+ {[%clk 0:00:10.6]} 51.
Kd3 {[%clk 0:00:36.1]} 51... Ra4 {[%clk 0:00:10.9]} 52. Rg6+ {[%clk 0:00:36.4]}
52... Kh2 {[%clk 0:00:09.8]} 53. Rg5 {[%clk 0:00:36.6]} 53... Ra2 {[%clk
0:00:08.1]} 54. Rxg7 {[%clk 0:00:18.5]} 54... Rxg2 {[%clk 0:00:08.6]} 55. Rh7
{[%clk 0:00:19.4]} 55... Kxh3 {[%clk 0:00:08.2]} 56. Rh6 {[%clk 0:00:20.2]}
56... Rg5 {[%clk 0:00:08.4]} 57. Rxa6 {[%clk 0:00:20.4]} 57... Kg3 {[%clk
0:00:08.9]} 58. Kc4 {[%clk 0:00:20.6]} 58... h3 {[%clk 0:00:09.2]} 59. Kb4
{[%clk 0:00:21.5]} 59... h2 {[%clk 0:00:09.3]} 60. Rh6 {[%clk 0:00:21.6]} 60...
Rg4+ {[%clk 0:00:09.7]} 61. Kb5 {[%clk 0:00:20.3]} 61... Rh4 {[%clk 0:00:10.6]}
62. Rg6+ {[%clk 0:00:19.2]} 62... Kf2 {[%clk 0:00:10.6]} 63. Rf6+ {[%clk
0:00:19.5]} 63... Kg3 {[%clk 0:00:10]} 64. Rf1 {[%clk 0:00:19.1]} 64... Kg2
{[%clk 0:00:10]} 65. Ra1 {[%clk 0:00:18.4]} 65... h1=Q {[%clk 0:00:10]} 66. Rxh1
{[%clk 0:00:18.5]} 66... Rxh1 {[%clk 0:00:10.9]} 67. a6 {[%clk 0:00:19.3]} 67...
Ra1 {[%clk 0:00:11.4]} 68. Kb6 {[%clk 0:00:19.8]} 68... Rxa6+ {[%clk 0:00:12]}
69. Kxa6 {[%clk 0:00:20.4]} 1/2-1/2